[Event "FIDE WTC Prel-A 2022"]
[Site "Jerusalem"]
[Date "2022.11.21"]
[Round "4.1"]
[White "Santos Latasa, Jaime"]
[Black "Ivanchuk, Vasyl"]
[Result "1/2-1/2"]
[ECO "C88"]
[WhiteElo "2665"]
[BlackElo "2673"]
[Annotator "TA"]
[PlyCount "66"]
[EventDate "2022.11.20"]
[EventType "team-tourn"]
[EventCountry "ISR"]
[SourceTitle "playchess.com"]
[Source "ChessBase"]
[SourceQuality "1"]
[WhiteTeam "Spain"]
[BlackTeam "Ukraine"]
[WhiteTeamCountry "ESP"]
[BlackTeamCountry "UKR"]
[TimeControl "2700+10"]

{[%evp 17,66,22,46,15,17,8,28,29,38,25,31,33,42,18,32,25,25,18,21,0,0,0,0,0,0,0,0,-13,0,-10,0,0,6,19,6,0,0,0,2,0,0,0,0,0,0,0,0,0,0,0,0]} 1. e4 {[%emt 0:00:03] Bartel,M} e5 {[%emt 0:00:11]} 2. Nf3 {[%emt 0:00:02]} Nc6 {[%emt 0:00:03]} 3. Bb5 {[%emt 0:00:04]} a6 {[%emt 0:00:14]} 4. Ba4 {[%emt 0:00:02]} Nf6 {[%emt 0:00:02]} 5. O-O {[%emt 0:00:04]} Be7 {[%emt 0:00:03]} 6. Re1 {[%emt 0:00:09]} b5 {[%emt 0:00:02]} 7. Bb3 {[%emt 0:00:04]} O-O {[%emt 0:00:03]} 8. h3 {[%emt 0:01:16]} Bb7 {[%emt 0:01:30]} 9. d3 {[%emt 0:00:05]} h6 {[%emt 0:02:02] [#] Recently 9...d5 got a lot of attention.} 10. c4 $146 {[%emt 0:05:26] C88: Closed Ruy Lopez: Anti-Marshall Systems.} ({Predecessor:} 10. Nbd2 Re8 11. c3 Bf8 12. a4 Na5 13. Bc2 c5 14. d4 cxd4 15. cxd4 d5 16. dxe5 Nxe4 17. axb5 axb5 18. Qe2 {1-0 (33) Jakovenko,D (2737)-Bartel,M (2602) Dresden 2008 CBM 128 [Bartel,M]}) 10... d6 {[%emt 0:04:06]} 11. Nc3 {[%emt 0:00:58]} Na5 {[%emt 0:04:23]} 12. cxb5 {[%emt 0:02:22] White has an edge.} axb5 {[%emt 0:00:18]} 13. Nxb5 {[%emt 0:00:17]} Nxb3 {[%emt 0:00:04]} 14. Qxb3 {[%emt 0:00:02]} Rb8 {[%emt 0:00:01]} 15. a4 {[%emt 0:00:21]} Ba6 {[%emt 0:00:16] [#] ...c6 is the strong threat.} 16. Qc2 {[%emt 0:00:08]} Bxb5 {[%emt 0:00:15]} 17. axb5 {[%emt 0:00:02]} Rxb5 {[%emt 0:00:41] The position is equal.} 18. d4 {[%emt 0:04:02]} Qb8 {[%emt 0:11:37]} 19. Ra4 {[%emt 0:03:20]} Rc8 {[%emt 0:08:35]} 20. Re2 {[%emt 0:03:29][%cal Be1e2,Be2d2,Bd2d4][%mdl 32]} Qb7 {[%emt 0:03:23]} 21. dxe5 {[%emt 0:00:51]} dxe5 {[%emt 0:00:02]} 22. Be3 {[%emt 0:00:58]} Bb4 {[%emt 0:03:40]} (22... Bd6 {looks sharper.} 23. Nh4 Rb8 24. Nf5 Rxb2 25. Qxb2 Qxb2 26. Rxb2 Rxb2 27. f3 Rb3) 23. Bd2 {[%emt 0:00:43]} Bxd2 {[%emt 0:01:42]} 24. Rxd2 {[%emt 0:00:07]} Rb4 {[%emt 0:02:43]} 25. Rxb4 {[%emt 0:02:30]} Qxb4 {[%emt 0:00:01]} 26. Nxe5 {[%emt 0:00:35]} Qxe4 {[%emt 0:00:02] [#] aiming for ...Qe1+.} 27. Qxe4 {[%emt 0:00:55]} Nxe4 $11 {[%emt 0:00:02][%mdl 4096] Endgame KRN-KRN} 28. Rd4 {[%emt 0:00:54]} Nd6 {[%emt 0:00:12]} 29. Nc4 {[%emt 0:00:09]} Nxc4 {[%emt 0:00:15]} 30. Rxc4 {[%emt 0:00:02]} Kf8 {[%emt 0:00:38]} 31. Kf1 {[%emt 0:00:05]} Ke8 {[%emt 0:00:13]} 32. Ke2 {[%emt 0:00:06]} Rb8 {[%emt 0:00:04]} 33. Rxc7 {[%emt 0:00:04]} Rxb2+ {[%emt 0:00:13] Weighted Error Value: White=0.07 (flawless) /Black=0.04 (flawless)} 1/2-1/2

[Event "FIDE WTC Prel-A 2022"]
[Site "Jerusalem"]
[Date "2022.11.21"]
[Round "4.2"]
[White "Shevchenko, Kirill"]
[Black "Anton Guijarro, David"]
[Result "1-0"]
[ECO "A13"]
[WhiteElo "2649"]
[BlackElo "2668"]
[Annotator "TA"]
[PlyCount "67"]
[EventDate "2022.11.20"]
[EventType "team-tourn"]
[EventCountry "ISR"]
[SourceTitle "playchess.com"]
[Source "ChessBase"]
[SourceQuality "1"]
[WhiteTeam "Ukraine"]
[BlackTeam "Spain"]
[WhiteTeamCountry "UKR"]
[BlackTeamCountry "ESP"]
[TimeControl "2700+10"]

{[%evp 20,67,0,0,5,0,0,0,0,0,0,0,0,0,0,0,0,0,21,0,23,20,32,33,45,56,89,-16,72,68,82,58,93,68,123,130,151,122,189,147,171,129,139,92,466,455,575,567,585,580]} 1. Nf3 {[%emt 0:00:02]} d5 {[%emt 0:00:53]} 2. c4 {[%emt 0:00:03]} e6 {[%emt 0:00:48]} 3. g3 {[%emt 0:00:02]} dxc4 {[%emt 0:00:02]} 4. Qa4+ {[%emt 0:00:49]} Nd7 {[%emt 0:01:34]} 5. Qxc4 {[%emt 0:01:23]} a6 {[%emt 0:00:46]} 6. Bg2 {[%emt 0:03:19]} b5 {[%emt 0:00:14]} 7. Qc2 {[%emt 0:02:49]} Bb7 {[%emt 0:00:09]} 8. a4 {[%emt 0:02:34]} c5 {[%emt 0:04:32]} 9. Nc3 {[%emt 0:05:51]} Qb6 {[%emt 0:01:19]} 10. O-O {[%emt 0:02:03]} Ngf6 {[%emt 0:00:33]} 11. d3 {[%emt 0:03:32]} Be7 {[%emt 0:00:44] A13: English Opening: 1...e6.} 12. axb5 {[%emt 0:03:07]} axb5 {[%emt 0:00:04]} 13. Rxa8+ {[%emt 0:00:02]} Bxa8 {[%emt 0:00:01] The position is equal.} 14. Qb3 {[%emt 0:00:01]} b4 {[%emt 0:05:36]} 15. Nd1 {[%emt 0:00:53][%cal Bc3d1,Bd1e3,Be3c4][%mdl 32]} Qa6 {[%emt 0:05:32]} 16. Ne3 {[%emt 0:01:27]} O-O {[%emt 0:01:49]} 17. Nc4 {[%emt 0:00:37] [#]} Bd5 $146 {[%emt 0:01:04]} ({Predecessor:} 17... Nb6 18. Nfe5 Nxc4 19. Nxc4 Bxg2 20. Kxg2 Nd5 21. e4 Nc7 22. Be3 Nb5 23. Rc1 Rd8 {0-1 (34) Bjelobrk,I (2395)-Sjugirov,S (2696) Chess.com INT 2022}) 18. Qc2 {[%emt 0:01:00]} Qa2 {[%emt 0:01:19]} 19. Bf4 {[%emt 0:03:37]} Bxc4 {[%emt 0:03:52]} 20. dxc4 {[%emt 0:00:17]} Nb6 {[%emt 0:03:17]} 21. Nd2 {[%emt 0:02:32]} Nfd7 {[%emt 0:00:20]} 22. Nb3 {[%emt 0:02:24] Strongly threatening Ra1.} Bf6 {[%emt 0:06:21]} 23. Rb1 {[%emt 0:01:54] [#]} (23. Bd6 $16) 23... Qa6 {[%emt 0:02:43]} (23... Nxc4 $1 $11 {keeps the balance.} 24. Be4 Ncb6) 24. Bc6 $16 {[%emt 0:01:30]} Qc8 {[%emt 0:00:35]} 25. Qe4 {[%emt 0:00:35] And now Bd6 would win.} Be7 {[%emt 0:00:43] Against Bd6} 26. Bb5 {[%emt 0:01:45] This bishop pair is nice.} Nf6 {[%emt 0:00:53] [#]} (26... h6 $14) 27. Qf3 $1 {[%emt 0:00:08]} h6 {[%emt 0:01:30]} 28. Na5 {[%emt 0:00:20]} Nfd7 {[%emt 0:00:51]} (28... e5 $16) 29. Rd1 {[%emt 0:01:29]} e5 {[%emt 0:00:04]} 30. Be3 {[%emt 0:00:13]} Nb8 {[%emt 0:00:06]} 31. Qb7 $36 {[%emt 0:00:51][%mdl 2048] White has strong initiative. White has more active pieces. The black rooks are badly placed.} ({Better is} 31. Qe4) 31... Qe6 {[%emt 0:01:20][%mdl 8192]} (31... Rd8 $16 32. Rxd8+ Qxd8) 32. Nb3 $18 {[%emt 0:00:42] White is clearly winning.} Nxc4 {[%emt 0:00:38]} 33. Nxc5 {[%emt 0:00:11]} Qb6 {[%emt 0:00:08]} 34. Bxc4 {[%emt 0:00:06] Weighted Error Value: White=0.16 (very precise) /Black=0.52} ({Weaker is} 34. Qxe7 Nxe3 35. fxe3 (35. Nd7 Nxd7 36. fxe3 Qxb5 $17) 35... Qxb5 $11) 1-0

[Event "FIDE WTC Prel-A 2022"]
[Site "Jerusalem"]
[Date "2022.11.21"]
[Round "4.3"]
[White "Shirov, Alexei"]
[Black "Kovalenko, Igor"]
[Result "1-0"]
[ECO "B41"]
[WhiteElo "2666"]
[BlackElo "2674"]
[Annotator "TA"]
[PlyCount "83"]
[EventDate "2022.11.20"]
[EventType "team-tourn"]
[EventCountry "ISR"]
[SourceTitle "playchess.com"]
[Source "ChessBase"]
[SourceQuality "1"]
[WhiteTeam "Spain"]
[BlackTeam "Ukraine"]
[WhiteTeamCountry "ESP"]
[BlackTeamCountry "UKR"]
[TimeControl "2700+10"]

{[%evp 14,83,59,60,61,69,72,52,68,52,114,125,152,140,154,143,177,159,167,162,184,183,184,185,206,156,141,31,26,10,12,14,9,63,43,0,79,79,86,88,159,159,185,185,185,184,172,188,181,181,181,186,164,157,156,156,151,161,162,153,165,141,777,319,756,752,774,736,1195,1154,1098,929]} 1. e4 {[%emt 0:00:02]} c5 {[%emt 0:00:01]} 2. Nf3 {[%emt 0:00:03]} e6 {[%emt 0:00:01]} 3. d4 {[%emt 0:00:02]} cxd4 {[%emt 0:00:02]} 4. Nxd4 {[%emt 0:00:02]} a6 {[%emt 0:00:01]} 5. c4 {[%emt 0:00:03]} Nf6 {[%emt 0:00:02]} 6. Nc3 {[%emt 0:00:02]} Qc7 {[%emt 0:00:01]} 7. a3 {[%emt 0:00:13]} b6 {[%emt 0:00:02]} 8. Be3 {[%emt 0:00:03]} Bb7 {[%emt 0:00:02] B41: Sicilian: Kan Variation: 5 c4.} 9. f3 {[%emt 0:00:03]} Nc6 {[%emt 0:00:36]} 10. Na4 {[%emt 0:00:26]} Rb8 {[%emt 0:01:23] White is slightly better.} 11. b4 {[%emt 0:03:39] [#]} Bd6 $146 {[%emt 0:11:18]} (11... Be7 $14) ({Predecessor:} 11... Be7 12. Qd2 Ne5 13. Be2 O-O 14. O-O Ng6 15. Bf2 Rfc8 16. c5 bxc5 17. Nxc5 Bd6 {½-½ (87) Tseng,W (2466)-Rubinas,P (2551) ICCF email 2016}) 12. Ne2 $16 {[%emt 0:00:29]} Be7 {[%emt 0:13:18]} 13. Bxb6 {[%emt 0:01:15]} Qe5 {[%emt 0:01:16]} 14. Be3 {[%emt 0:01:51]} Qc7 {[%emt 0:02:18][%cal Od7d5]} 15. Nec3 {[%emt 0:00:48] Inhibits d5.} O-O {[%emt 0:01:34]} 16. Be2 {[%emt 0:00:02]} Ne5 {[%emt 0:00:08]} 17. Bb6 {[%emt 0:00:18]} Qc6 {[%emt 0:00:42]} 18. c5 {[%emt 0:00:38]} Ng6 {[%emt 0:02:39]} 19. Qd2 {[%emt 0:00:34] Against Nf4} d5 {[%emt 0:00:47][%cal Rd5e4]} 20. exd5 {[%emt 0:05:55]} ({White should play} 20. cxd6 $1 $16 Bxd6 21. Rd1) 20... Nxd5 $14 {[%emt 0:00:02]} 21. Nxd5 {[%emt 0:00:05]} exd5 {[%emt 0:00:03]} 22. Nc3 {[%emt 0:01:19]} Bh4+ {[%emt 0:00:16]} 23. g3 {[%emt 0:00:03]} Bf6 {[%emt 0:00:01] ...d4 is the strong threat.} 24. Rd1 {[%emt 0:00:20][%cal Rc3d5]} d4 {[%emt 0:02:53]} (24... Bxc3 $11 25. Qxc3 Rfe8) 25. Ne4 $16 {[%emt 0:00:06]} Be5 {[%emt 0:00:18]} 26. O-O $36 {[%emt 0:00:33][%mdl 2048] Keeping Black busy.} Rbe8 {[%emt 0:03:00]} ({Black should try} 26... f5 27. Qa2+ Kh8) 27. Bc4 {[%emt 0:05:16] White is more active.} Kh8 {[%emt 0:03:08]} 28. Qd3 $1 {[%emt 0:00:04]} f5 {[%emt 0:00:04]} 29. b5 $1 {[%emt 0:00:38]} axb5 {[%emt 0:00:26]} 30. Bxb5 {[%emt 0:00:02]} Qe6 {[%emt 0:01:09]} 31. Ng5 {[%emt 0:02:51]} Qf6 {[%emt 0:00:02]} 32. Bxe8 {[%emt 0:01:05]} Rxe8 {[%emt 0:00:59]} 33. f4 {[%emt 0:00:24][%cal Bf3f4,Bf4e5][%mdl 32] Black must now prevent Qb5.} h6 {[%emt 0:01:44]} 34. fxe5 {[%emt 0:04:17]} Qxg5 {[%emt 0:00:01]} 35. Rxf5 {[%emt 0:00:02]} ({Don't blunder} 35. Qxf5 $2 Qe3+ 36. Rf2 (36. Qf2 $2 Qe4 $19) 36... Rf8 $19) 35... Qg4 {[%emt 0:00:11]} 36. Re1 {[%emt 0:01:23] Prevents Be4. Strongly threatening Rf7.} Nh4 {[%emt 0:00:26]} 37. Rf4 {[%emt 0:00:07]} (37. Qb5 Qxf5 38. c6 Nf3+ 39. Kf2 Ng5+ 40. Kg1 {[#]} Rf8 $1 41. Bxd4 Qf3 $1 42. Qf1 Nh3+ $1 {[%mdl 512]} 43. Qxh3 Bxc6) 37... Qh3 {[%emt 0:00:09][%mdl 8192] This costs Black the game.} (37... Nf3+ $16 38. Qxf3 Qxf3 39. Rxf3 Bxf3) 38. Qf1 {[%emt 0:00:24]} (38. Re2 $142) 38... Ng2 $2 {[%emt 0:00:13]} (38... Qg2+ 39. Qxg2 Nxg2) 39. Rf2 $18 {[%emt 0:00:12] White is clearly winning.} d3 {[%emt 0:00:09]} 40. Rxg2 {[%emt 0:00:13]} Bxg2 {[%emt 0:00:03]} 41. Qxg2 {[%emt 0:00:03]} Qd7 {[%emt 0:00:02]} 42. c6 {[%emt 0:00:46] Weighted Error Value: White=0.32/Black=0.17 (very precise)} 1-0

[Event "FIDE WTC Prel-A 2022"]
[Site "Jerusalem"]
[Date "2022.11.21"]
[Round "4.4"]
[White "Bernadskiy, Vitaliy"]
[Black "Santos Ruiz, Miguel"]
[Result "1/2-1/2"]
[ECO "A13"]
[WhiteElo "2615"]
[BlackElo "2587"]
[Annotator "TA"]
[PlyCount "104"]
[EventDate "2022.11.20"]
[EventType "team-tourn"]
[EventCountry "ISR"]
[SourceTitle "playchess.com"]
[Source "ChessBase"]
[SourceQuality "1"]
[WhiteTeam "Ukraine"]
[BlackTeam "Spain"]
[WhiteTeamCountry "UKR"]
[BlackTeamCountry "ESP"]
[TimeControl "2700+10"]

{[%evp 14,104,20,22,47,35,22,10,33,21,14,22,38,16,20,16,18,12,0,-9,8,0,0,-27,0,-16,-13,-18,-12,-20,-17,-42,0,0,0,0,0,0,0,0,0,0,0,0,47,43,52,0,0,-68,-64,-72,-81,-247,-251,-277,-246,-247,-90,-76,0,-180,-168,-203,-219,-214,-215,-266,-246,-414,-415,-437,-397,-410,-435,-702,-155,-162,-155,-154,-133,-133,-133,-133,-133,-148,-79,-101,-8,-191,-8,-8,-59]} 1. c4 {[%emt 0:00:03]} Nf6 {[%emt 0:00:02]} 2. Nf3 {[%emt 0:00:17]} e6 {[%emt 0:00:03]} 3. g3 {[%emt 0:00:02]} d5 {[%emt 0:00:04]} 4. Bg2 {[%emt 0:00:02]} dxc4 {[%emt 0:00:15]} 5. Qa4+ {[%emt 0:00:15]} Nbd7 {[%emt 0:00:03]} 6. Qxc4 {[%emt 0:00:11]} a6 {[%emt 0:00:04]} 7. Qb3 {[%emt 0:00:21]} c5 {[%emt 0:00:39]} 8. O-O {[%emt 0:00:55]} Ra7 {[%emt 0:03:40] A13: English Opening: 1...e6.} 9. a4 {[%emt 0:00:55]} b6 {[%emt 0:00:06]} 10. Na3 {[%emt 0:01:47]} Bb7 {[%emt 0:02:27]} 11. Nc4 {[%emt 0:00:03]} Be7 {[%emt 0:02:01]} 12. d3 {[%emt 0:00:25] [#]} Nd5 $146 {[%emt 0:02:57]} ({Predecessor:} 12... O-O 13. Bd2 h6 14. Rfb1 a5 15. Qd1 Nd5 16. Nfe5 Nxe5 17. Nxe5 Qc7 18. Nc4 Raa8 {0-1 (41) Gabor,G (2084)-Meijers,V (2490) Bad Harzburg 2007}) 13. Bd2 {[%emt 0:00:29]} O-O {[%emt 0:00:11]} 14. Rfc1 {[%emt 0:01:08]} a5 {[%emt 0:02:40]} 15. Qd1 {[%emt 0:04:10]} Nb8 {[%emt 0:03:15]} 16. d4 {[%emt 0:03:50]} Na6 {[%emt 0:05:44]} (16... Nc6 {keeps more tension.} 17. dxc5 Bxc5 18. Nfe5 Nxe5 19. Nxe5 Bd4) 17. Na3 {[%emt 0:02:04]} (17. e4 Ndb4 $15) 17... Ra8 {[%emt 0:00:30]} 18. Nb5 {[%emt 0:00:12]} Rc8 {[%emt 0:00:42]} 19. e4 {[%emt 0:02:00]} Nf6 {[%emt 0:00:18]} 20. e5 {[%emt 0:00:19]} Nd5 {[%emt 0:00:39]} 21. h4 {[%emt 0:00:11]} Qd7 {[%emt 0:03:37]} (21... Ndb4 {feels hotter.} 22. Qe2 Bd5 23. Rd1 Nc2) 22. Bg5 {[%emt 0:00:25]} cxd4 {[%emt 0:00:59]} (22... Ndb4 {seems wilder.} 23. Bxe7 Qxe7 24. Nd6 Rcd8) 23. Nfxd4 {[%emt 0:02:57]} Rxc1 {[%emt 0:00:49]} 24. Rxc1 {[%emt 0:00:04]} Bc5 {[%emt 0:00:33]} 25. Qg4 {[%emt 0:00:49]} Kh8 {[%emt 0:00:02]} 26. Rd1 {[%emt 0:00:37]} Nac7 {[%emt 0:01:15]} 27. Be4 {[%emt 0:00:59]} Nxb5 {[%emt 0:01:07]} 28. Nxb5 {[%emt 0:01:04]} f5 {[%emt 0:00:48]} (28... Qc8 $11 {feels stronger.}) 29. exf6 $1 $14 {[%emt 0:00:41]} gxf6 {[%emt 0:00:02][%cal Bg7f6,Bf6f5,Bf5e4][%mdl 32]} 30. Bf4 {[%emt 0:01:44]} (30. Bh6 $14 Rg8 31. Qf3) 30... Qe7 $11 {[%emt 0:03:08]} 31. Bh6 {[%emt 0:03:06]} (31. Bxd5 $11 Bxd5 32. Rd3) 31... f5 $1 $15 {[%emt 0:00:52]} 32. Bxf8 {[%emt 0:03:52]} Qxf8 {[%emt 0:00:02]} (32... fxg4 $2 33. Bxe7 Bxe7 34. Nc7 $18) 33. Qf3 {[%emt 0:05:26]} (33. Bxf5 $17 exf5 34. Qe2) 33... fxe4 $19 {[%emt 0:00:12]} 34. Qxf8+ {[%emt 0:00:03]} Bxf8 {[%emt 0:00:02]} 35. Nd4 {[%emt 0:00:41]} Bg7 $2 {[%emt 0:06:24]} (35... Bc8 $19 {has better winning chances. ...Bd7 is the strong threat.} 36. h5 Bd7) 36. Nxe6 $17 {[%emt 0:00:36]} Bf6 {[%emt 0:01:27]} ({Black should try} 36... Bxb2 $17 {Threatens to win with ...Bc6.} 37. Nf4 Nxf4 38. Rd8+ Kg7 39. Rd7+ Kg8 40. Rxb7 Nd5 41. Rb8+ Kg7 42. Rb7+ Kf8) 37. Re1 $2 {[%emt 0:01:06] [#]} (37. Nf4 $1 $11 {and White is okay.} Nxf4 38. gxf4) 37... Nb4 $1 $19 {[%emt 0:00:37]} ({And not} 37... Bxb2 38. Rxe4 Nc3 39. Rc4 $17) 38. Rc1 {[%emt 0:00:39] aiming for Rc7.} Bc6 {[%emt 0:00:12] A strong pair of Bishops.} ({Stronger than} 38... Bxb2 39. Rc7 Ba6 40. Ng5 $15) 39. b3 {[%emt 0:00:31]} Kg8 {[%emt 0:00:06]} 40. Nc7 {[%emt 0:00:16]} Kf7 {[%emt 0:00:08]} 41. Na6 $2 {[%emt 0:00:12]} (41. Rb1 {was called for.}) 41... Bd5 {[%emt 0:00:05]} ({Weaker is} 41... Nxa6 42. Rxc6 Nc5 43. Rxb6 $11) 42. Rc7+ {[%emt 0:00:21]} Kg6 {[%emt 0:00:02]} 43. Nxb4 {[%emt 0:01:13]} axb4 {[%emt 0:00:01]} 44. g4 {[%emt 0:00:03]} (44. Rc1 $142 Kf5 45. Rb1) 44... Bxh4 $2 {[%emt 0:01:59]} (44... Bc3 $19 {and Black stays clearly on top.} 45. Kg2 Bxb3 46. Rc6+ Kf7 47. Rxb6 Bxa4) 45. Rd7 $17 {[%emt 0:00:06]} Bxb3 {[%emt 0:00:18]} 46. Rd6+ {[%emt 0:00:03]} Kg5 {[%emt 0:00:15]} 47. Rxb6 {[%emt 0:00:12]} Bxa4 {[%emt 0:00:32] White must now prevent ...e3.} 48. Rxb4 {[%emt 0:00:02] [#]} Bc2 {[%emt 0:00:13]} 49. Kg2 {[%emt 0:00:02]} Kxg4 {[%emt 0:00:19]} (49... Bd3 $142 50. Rd4 Kf6) 50. f3+ {[%emt 0:00:01]} Kf4 {[%emt 0:00:01]} (50... Kf5 $17 51. Rxe4 Bf6) 51. fxe4 $2 {[%emt 0:00:01]} (51. Rxe4+ $1 $11 Kg5 52. Rg4+ Kh5 53. Rc4) 51... Bxe4+ $2 {[%emt 0:00:02]} (51... Bf6 $19 {Strongly threatening ...Be5.} 52. e5+ Kxe5) 52. Rxe4+ $11 {[%emt 0:00:18]} Kxe4 {[%emt 0:01:20] Weighted Error Value: White=0.39/Black=0.34} 1/2-1/2

[Event "FIDE WTC Prel-A 2022"]
[Site "Jerusalem"]
[Date "2022.11.21"]
[Round "4.5"]
[White "Van Foreest, Jorden"]
[Black "Lu, Shanglei"]
[Result "1/2-1/2"]
[ECO "D24"]
[WhiteElo "2690"]
[BlackElo "2605"]
[Annotator "TA"]
[PlyCount "64"]
[EventDate "2022.11.20"]
[EventType "team-tourn"]
[EventCountry "ISR"]
[SourceTitle "playchess.com"]
[Source "ChessBase"]
[SourceQuality "1"]
[WhiteTeam "Netherlands"]
[BlackTeam "China"]
[WhiteTeamCountry "NED"]
[BlackTeamCountry "CHN"]
[TimeControl "2700+10"]

{[%evp 9,64,14,8,2,10,0,3,10,16,7,36,19,20,21,22,10,35,29,28,28,35,25,45,46,48,62,49,53,48,46,66,57,63,66,73,79,85,67,67,66,66,19,21,10,142,10,18,1,3,3,3,3,3,0,0,0,0]} 1. d4 {[%emt 0:00:03]} Nf6 {[%emt 0:00:12]} 2. c4 {[%emt 0:00:05]} e6 {[%emt 0:00:04]} 3. Nf3 {[%emt 0:00:06]} d5 {[%emt 0:00:04]} 4. Nc3 {[%emt 0:00:10]} dxc4 {[%emt 0:00:03]} 5. e4 {[%emt 0:00:09]} Bb4 {[%emt 0:00:04]} 6. Bxc4 {[%emt 0:00:22] D24: Queen's Gambit Accepted: 3 Nf3 Nf6 4 Nc3.} Nxe4 {[%emt 0:00:05]} 7. O-O {[%emt 0:00:11][%cal Bh1f1,Bf1e1,Be1e5][%mdl 32]} Nxc3 {[%emt 0:00:05]} 8. bxc3 {[%emt 0:00:03]} ({But not} 8. Qb3 Nd5 9. Bxd5 Qxd5 $17) 8... Be7 {[%emt 0:00:02]} 9. Ne5 {[%emt 0:00:44][%mdl 1024] White has compensation.} O-O {[%emt 0:00:04]} 10. Re1 {[%emt 0:00:24]} Nc6 {[%emt 0:03:00]} 11. Qg4 {[%emt 0:00:20]} f5 {[%emt 0:00:07]} 12. Qf3 {[%emt 0:00:28]} Nxe5 {[%emt 0:00:17]} 13. Rxe5 {[%emt 0:00:03]} Kh8 {[%emt 0:00:03]} 14. Bf4 {[%emt 0:00:02]} Bd6 {[%emt 0:00:03] [#] Hoping for ...g5. 14...g5 is not played anymore.} 15. Ree1 {[%emt 0:00:12]} (15. Re3 {looks sharper.} Bxf4 16. Qxf4 Qd6 17. Qxd6 cxd6 18. Bxe6 f4 19. Ree1) 15... Bxf4 {[%emt 0:06:02]} 16. Qxf4 {[%emt 0:00:03]} Qd6 {[%emt 0:07:46]} 17. Qxd6 {[%emt 0:00:04]} cxd6 {[%emt 0:00:02]} 18. Bxe6 {[%emt 0:00:02]} Bxe6 {[%emt 0:00:23]} 19. Rxe6 $14 {[%emt 0:00:03][%mdl 4096] Endgame KRR-KRR} Rac8 {[%emt 0:00:36]} 20. Rxd6 {[%emt 0:01:39]} Rxc3 {[%emt 0:00:48]} 21. Rd7 {[%emt 0:02:35] Against Rc7} Rfc8 {[%emt 0:02:40] [#] ( -> ...Rc1+)} 22. Re1 {[%emt 0:00:56] [#]} Kg8 $146 {[%emt 0:00:30]} ({Predecessor:} 22... Rc1 23. Kf1 R1c2 24. Ree7 Rxa2 25. Rc7 Rg8 26. Rxb7 a5 27. g3 h6 28. Ra7 f4 29. gxf4 {½-½ (58) Egresi,M (2362)-Nguyen,A (2311) Budapest 2022}) 23. Rxb7 {[%emt 0:03:25] White is more active.} R8c7 {[%emt 0:00:03]} 24. Rb5 {[%emt 0:09:48]} g6 {[%emt 0:01:04]} 25. h4 {[%emt 0:00:17]} (25. g3 $1 $14 {deserves consideration.}) 25... Rc1 $11 {[%emt 0:04:27]} 26. Rxc1 {[%emt 0:07:41]} Rxc1+ {[%emt 0:00:02] KR-KR} 27. Kh2 {[%emt 0:00:01] Black must now prevent Rb8+.} Rc2 {[%emt 0:00:04][%csl LRa2,LRf2] The position is equal.} 28. Rb8+ {[%emt 0:00:18]} Kg7 $1 {[%emt 0:01:16]} 29. Rb7+ {[%emt 0:00:06]} Kh6 $1 {[%emt 0:00:53]} 30. Kg3 {[%emt 0:07:40]} Rxa2 {[%emt 0:00:09]} 31. d5 {[%emt 0:00:01]} Rd2 {[%emt 0:00:43]} 32. Rd7 {[%emt 0:00:35]} Rd4 {[%emt 0:00:54] Weighted Error Value: White=0.05 (flawless) /Black=0.06 (flawless)} 1/2-1/2